Cogmind - Beta 10.1 @@@ ROGUE MODE // 2020.10.24 @ 11:44:16 Player: TheGreatBorealis Result: Self-destructed Performance ------------- Evolutions (1) 500 Regions Visited (2) 400 Robots Destroyed (13) 65 Value Destroyed (254) 254 Prototype IDs (0) 0 Alien Tech Used (0) 0 Bonus (0) 0 TOTAL SCORE: 1219 Bonus ------- None Cogmind --------- Core Integrity 400/400 Matter 184/300 Energy 250/250 System Corruption 1% Temperature Cool (0) Movement Hovering (52) Location -9/Materials Parts ------- > --- POWER (1) -------- Ion Engine > --- PROPULSION (3) --- Airjet Airjet Airjet > --- UTILITY (3) ------ Medium Storage Unit Sensor Array Signal Interpreter > --- WEAPON (2) ------- Minigun Mace > --- INVENTORY (8) ---- Ion Engine Light Ion Engine Armored Treads Airjet Sensor Array EM Pulse Gun Minigun Minigun Peak State ------------ > --- POWER ------------ Ion Engine > --- PROPULSION ------- Airjet Airjet Airjet > --- UTILITY ---------- Medium Storage Unit Sensor Array Signal Interpreter > --- WEAPON ----------- Minigun Mace > --- INVENTORY -------- Ion Engine Light Ion Engine Armored Treads Airjet Sensor Array EM Pulse Gun Minigun Minigun [Rating: 19] Favorites ----------- Power Ion Engine Engine Ion Engine Propulsion Aluminum Leg Treads Armored Treads Leg Aluminum Leg Hover Unit Airjet Utility Medium Storage Unit Device Sensor Array Storage Medium Storage Unit Processor Signal Interpreter Weapon Light Assault Rifle Energy Gun EM Pulse Gun Ballistic Gun Light Assault Rifle Ballistic Cannon Light Cannon Impact Weapon Mace Build | -11 -10 -9 ------- Run | Scr Mat Mat Slots Evolved 2 | . . 2 Power . | . . . Propulsion 1 | . . 1 Utility 1 | . . 1 Weapon . | . . . Parts Attached 20 | . 9 11 Power 1 | . 1 . Engine 1 | . 1 . Core . | . . . Reactor . | . . . Propulsion 6 | . 1 5 Treads 2 | . . 2 Leg 1 | . 1 . Wheel . | . . . Hover 3 | . . 3 Flight . | . . . Utility 5 | . 3 2 Device 1 | . 1 . Storage 3 | . 2 1 Processor 1 | . . 1 Hackware . | . . . Protection . | . . . Artifact . | . . . Weapon 8 | . 4 4 Energy Gun 2 | . 1 1 Energy Cannon . | . . . Ballistic Gun 2 | . 1 1 Ballistic Cannon 2 | . 2 . Launcher . | . . . Special Weapon . | . . . Impact Weapon 2 | . . 2 Slashing Weapon . | . . . Piercing Weapon . | . . . Special Melee Weapon . | . . . Unidentified Prototypes . | . . . Parts Lost 2 | . 2 . Power . | . . . Propulsion . | . . . Utility 1 | . 1 . Weapon 1 | . 1 . Highest Loss Streak 1 | . 1 . Average Slot Usage (%) 97 | . 97 99 Engine 13 | . 14 11 Leg 20 | . 28 2 Hover 9 | . . 29 Device 5 | . 3 11 Storage 18 | . 22 11 Processor 3 | . . 10 Energy Gun 4 | . 2 8 Ballistic Gun 15 | . 17 9 Ballistic Cannon 5 | . 7 1 Naked Turns . | . . . Heaviest Build 19 | 11 19 19 Greatest Support 27 | 20 20 27 Greatest Overweight (x) 2 | . . 2 Average Overweight (x) . | . . . Largest Inventory Capacity 8 | . 8 8 Average Capacity 7 | . 7 8 Most Carried 8 | . 8 8 Average Carried 7 | . 7 7 Final Capacity 8 | 6 8 8 Final Carried 8 | 6 8 8 Class Distribution -------------------- 100% | Mutant Dominant Class ---------------- Mutant | -10/Materials Mutant | -9/Materials Resources | -11 -10 -9 ----------- Run | Scr Mat Mat Matter Collected 472 | 200 272 . Remotely . | . . . Salvage Created 295 | . 272 23 Parts 26 | . 23 3 Haulers Intercepted . | . . . Recyclers Shooed . | . . . Parts Field Recycled . | . . . Retrieved Matter . | . . . Parts Self-Destructed . | . . . Prevented . | . . . Kills | -11 -10 -9 ------- Run | Scr Mat Mat Combat Hostiles Destroyed 10 | . 10 . Guns 9 | . 9 . Cannons 1 | . 1 . Classes Destroyed 3 | . 3 . Watcher 3 | . 2 1 Swarmer 6 | . 6 . Grunt 4 | . 4 . Best Kill Streak 3 | . 3 1 Combat Bots Only 3 | . 3 . Max Kills in Single Turn 1 | . 1 1 Gunslinging . | . . . Exploded . | . . . Melee . | . . . Uniques/NPCs Destroyed . | . . . Combat | -11 -10 -9 -------- Run | Scr Mat Mat Damage Taken 463 | . 446 17 Core 112 | . 112 . Absorbed by Shields . | . . . Core Remaining (%) 77 | 100 55 . Volleys Fired 51 | . 50 1 Largest 2 | . 2 2 Hottest 75 | . 75 65 Shots Fired 102 | . 100 2 Gun 86 | . 84 2 Cannon 16 | . 16 . Launcher . | . . . Special . | . . . Kinetic 99 | . 98 1 Thermal . | . . . Explosive . | . . . Electromagnetic 3 | . 2 1 Robot Hit Streak 13 | . 13 3 Robot Miss Streak 4 | . 4 . Penetration Max . | . . . Secondary Targets 2 | . 2 . Max Gunslinging Chain 1 | . 1 . Shots Hit Robots 57 | . 55 2 Core Hits 19 | . 18 1 Critical Hits 2 | . 2 . Critical Kills 1 | . 1 . Critical Parts Destroyed 1 | . 1 . Melee Attacks 8 | . . 8 Impact 8 | . . 8 Slashing . | . . . Piercing . | . . . Sneak Attacks . | . . . Combat Hostiles . | . . . Follow-up Attacks . | . . . Damage Inflicted 546 | . 505 41 Guns 460 | . 419 41 Cannons 86 | . 86 . Explosions . | . . . Melee . | . . . Ramming . | . . . Kinetic 504 | . 485 19 Thermal . | . . . Explosive . | . . . Electromagnetic 42 | . 20 22 Impact . | . . . Slashing . | . . . Piercing . | . . . Highest Corruption 3 | . 3 1 Average Corruption 2 | . 2 1 Corruption Purged . | . . . Effects 14 | . 14 . Message Errors 2 | . 2 . Matter Fused 4 | . 4 . Heat Flow Errors 3 | . 3 . Energy Discharges 2 | . 2 . Targeting Errors 3 | . 3 . Overload Shots . | . . . Overflow Damage . | . . . Projectiles . | . . . Explosions . | . . . Melee . | . . . Knockbacks 3 | . 3 . Impact . | . . . Kinetic 3 | . 3 . Secondary . | . . . Self-Inflicted Damage . | . . . Shots . | . . . Rammed . | . . . Targets Rammed . | . . . Kicked . | . . . Crushed . | . . . Highest Temperature 281 | . 281 24 Average Temperature 59 | . 60 14 Received Heat Transfer 96 | . 96 . Siege Activations . | . . . Robots Corrupted . | . . . Combat Hostiles . | . . . Parts Fried . | . . . Impact Corruptions . | . . . Robots Melted . | . . . Combat Hostiles . | . . . Parts Melted . | . . . Heat Transferred . | . . . Parts Sabotaged . | . . . Parts Stolen . | . . . Parts Stripped . | . . . Power Chain Reactions . | . . . Missiles Intercepted . | . . . Alert | -11 -10 -9 ------- Run | Scr Mat Mat Peak Influence 172 | . 172 61 Initial 9 | . . 9 Average 59 | . 76 20 Maximum Alert Level . | . . . Low Security (%) 100 | . 100 100 Level 1 . | . . . Level 2 . | . . . Level 3 . | . . . Level 4 . | . . . Level 5 . | . . . High Security . | . . . Max Security . | . . . Squads Dispatched 4 | . 2 2 Investigation 2 | . 1 1 Extermination . | . . . Reinforcement 2 | . 1 1 Assault . | . . . Garrison . | . . . Intercept . | . . . Construction Impeded . | . . . Haulers Reinforced . | . . . Stealth | -11 -10 -9 --------- Run | Scr Mat Mat Distress Signals 3 | . 1 2 Communications Jammed . | . . . Distress Signals . | . . . Times Spotted 34 | . 24 10 Peak Tracking Total 8 | . 4 8 Tactical Retreats 4 | . 3 1 Traps | -11 -10 -9 ------- Run | Scr Mat Mat Traps Triggered 6 | . 4 2 Indirectly . | . . . Trap Hack Attempts . | . . . Triggered . | . . . Disarmed . | . . . Reprogrammed . | . . . Reused . | . . . Traps Extracted . | . . . Installed . | . . . Triggered . | . . . Machines | -11 -10 -9 ---------- Run | Scr Mat Mat Machines Disabled 1 | . 1 . Max in Single Turn 1 | . 1 . Machines Sabotaged . | . . . Garrisons Compromised . | . . . Overloaded Fab Kills . | . . . Fab Network Shutdowns . | . . . Hacking | -11 -10 -9 --------- Run | Scr Mat Mat Machines Accessed 5 | . 3 2 Terminals 5 | . 3 2 Fabricators . | . . . Repair Stations . | . . . Recycling Units . | . . . Scanalyzers . | . . . Garrison Access . | . . . Total Hacks 13 | . 6 7 Successful 7 | . 4 3 Failed 6 | . 2 4 Catastrophic 1 | . . 1 Database Lockouts . | . . . Manual 8 | . 2 6 Terminals 13 | . 6 7 Fabricators . | . . . Repair Stations . | . . . Recycling Units . | . . . Scanalyzers . | . . . Garrison Access . | . . . Terminal Hacks 4 | . 3 1 Branch Access Points 1 | . . 1 Terminal Index 1 | . 1 . Recall Reinforcements 1 | . 1 . Zone Layout 1 | . 1 . Fabricator Hacks . | . . . Repair Station Hacks . | . . . Recycling Unit Hacks . | . . . Scanalyzer . | . . . Garrison Access Hacks . | . . . Unauthorized Hacks 3 | . 1 2 Terminals 3 | . 1 2 Track 1 | . . 1 Assimilate 1 | . . 1 Botnet 1 | . 1 . Fabricators . | . . . Repair Stations . | . . . Recycling Units . | . . . Scanalyzers . | . . . Garrison Access . | . . . Data Cores Recovered . | . . . Used . | . . . Hacking Detections 4 | . 2 2 Full Trace Events . | . . . Feedback Events . | . . . Feedback Blocked . | . . . Robot Schematics Acquired . | . . . Robots Built . | . . . Matter . | . . . Time . | . . . Total Robot Build Rating . | . . . Part Schematics Acquired . | . . . Parts Built . | . . . Matter . | . . . Time . | . . . Total Part Build Rating . | . . . Parts Repaired . | . . . Time . | . . . Parts Recycled . | . . . Recycled Matter . | . . . Retrieved Matter . | . . . Retrieved Components . | . . . Parts Scanalyzed . | . . . Part Schematics Acquired . | . . . Parts Damaged . | . . . Bothacking | -11 -10 -9 ------------ Run | Scr Mat Mat Used RIF Installer . | . . . Robots Hacked . | . . . Non-combat . | . . . Combat . | . . . Robot Hacks Applied . | . . . Relay Couplers Released . | . . . Robots Rewired . | . . . Allies Hacked . | . . . Hacks Repelled . | . . . Allies | -11 -10 -9 -------- Run | Scr Mat Mat Total Allies 1 | . . 1 Largest Group 1 | . . 1 Highest-Rated Group 10 | . . 10 Highest-Rated Ally 10 | . . 10 Total Orders . | . . . Ally Attacks . | . . . Total Damage . | . . . Kills . | . . . Allies Corrupted . | . . . Allies Melted . | . . . Intel | -11 -10 -9 ------- Run | Scr Mat Mat Robot Analysis Total . | . . . Derelict Logs Recovered . | . . . Drone Launches . | . . . Drone Recoveries . | . . . Exploration | -11 -10 -9 ------------- Run | Scr Mat Mat Turns Passed 1426 | . 987 439 Spaces Moved 848 | 1 568 279 Core . | . . . Treads . | . . . Legs 596 | 1 568 27 Wheels . | . . . Hover 252 | . . 252 Flight . | . . . Fastest Speed 52 | 120 120 52 Average Speed 100 | 120 120 59 Slowest Speed 180 | 120 120 180 Overloaded Moves . | . . . Propulsion Burnouts . | . . . Robots Hopped . | . . . Cave-ins Triggered . | . . . Exploration Rate (%) 28 | 2 67 17 Regions Visited 2 Branch Regions . Pre-discovered Areas . | . . . Known Exits Taken . | . . . Unknown Exits Taken 2 | 1 1 . Scrap Searched . | . . . Spaces Dug 6 | . . 6 Terrain Destroyed 6 | . . 6 Melee 6 | . . 6 Projectile . | . . . AOE . | . . . Terrain Rammed . | . . . Walls Destroyed . | . . . Machines Disabled . | . . . Actions | -11 -10 -9 --------- Run | Scr Mat Mat Total 1329 | . 790 539 Wait 377 | . 154 223 Move 846 | . 567 279 Hop . | . . . Pick Up 11 | . 5 6 Fast Attach 7 | . 2 5 Attach 3 | . 1 2 Detach 1 | . . 1 Swap 10 | . 6 4 Drop 15 | . 5 10 Fire 51 | . 50 1 Melee 8 | . . 8 Ram . | . . . Kick . | . . . Crush . | . . . Escape Stasis . | . . . Rewire . | . . . Trap . | . . . Miscellaneous . | . . . Route ------- -11/Scrapyard -10/Materials (discovered 2 exits: *Mat / [*Min]) -9/Materials (discovered 3 exits: Min x2 / Sto) History --------- Turn | Location | Event 1 | -11/Scrapyard | Discovered new exit (range 0) 1 | -11/Scrapyard | Entered Materials 252 | -10/Materials | Discovered new exit (range 6) 307 | -10/Materials | Build established: Mutant 959 | -10/Materials | Discovered new exit (range 10) 988 | -10/Materials | Entered another Materials area 988 | -9/Materials | Evolved 2 slots: Propulsion x1, Utility x1 1393 | -9/Materials | Identified exit to Mines 1393 | -9/Materials | Identified exit to Storage 1427 | -9/Materials | Self-destructed Last Messages --------------- (16,88) Storage Map updated. >>Trojan(Track) Trojan loaded successfully. Testing... Tracking enabled and active. 01393_ Triggered Shock Trap. 01393_ The floor emits a surge of raw power. 01393_ System corrupted (+1). 01411_ Connecting with Terminal... >>Trojan(Assimilate) Trojan loaded successfully. Testing... System interface override in place. 01412_ O-16 Technician accesses terminal... 01412_ O-16 Technician IFF database reprogrammed. 01412_ U-05 Engineer lays Concrete. 01412_ Technician 2a reveals location of Shock Trap. 01423_ ALERT: Hostiles spotted, dispatching reinforcements to Terminal M001. Map ----- +----------------------------------------------------+ | ????????????????????????????????????????????? | | ????????????????????????????????????????????? | | ????????????????????????????????????????????? | | ????????????????????????????????????????????? | | ????????????????????????????????????????????? | | ????????????????????????????????????????????? | | ????????????????????????????????????????????? | | ????????????????????????????????????????????? | | ????????????????????????????????????????????? | | ????????????????????????????????????????????? | | ????????????????????????????????????????????? | | ????????????????????????????????????????????? | | ????????????????????????????????????????????? | | ????????????????????????????????????????????? | | ????????????????????????????????????????????? | | ??????????????? ????????????????????????????? | | ?????????????? ???????????????????????????? | | ??????????????? ?????????????X????????????? | | ????????????????? ?????????????????????????? | | ?????????????????? ????????????????????????? | | ??????????????????? ######+????????????????? | | ????????????????????? ????????????????? | | ?????????????????????? g?????????????????? | | ??????????????????????? a?????????????????? | | ?????????????????????####g#####?????????????? | | ??????????##?????????#= @ s #?????????????? | | ??????????#"########## """"" #?????????????? | | ???????????# + """""s#?????????????? | | ???????????# ^ # """""s#x????????????? | | ???????????# """Y# s #?????????????? | | ???????????# ^ """ # """"" #?????????????? | | ???????????#"" """ # """"" #?????????????? | | ???????????#"T """ # """"" #?????????????? | | ???????????#"" ^"""Y# #?????????????? | | ???????????# u Y "+########?????????????? | | ##################+### ##???????????????????? | | #???????????????????? | | #???????????????????? | | ![! #???????????????????? | | ################ ![ #???????????????????? | | ?###???????????# ![ #???????????????????? | | ####???????????# #???????????????????? | | [ #???????????# +???????????????????? | | ##??????????+ """ #???????????????????? | | ##??????????# """ #???????????????????? | | ##??????????# """ #???????????????????? | | !!#???????????# ???????????????????? | | !!#????????#### ? ??????????????????? | | ####????????# ? ???????????##?##?? | | ????????????# ####+#####?? ???????????#"#"### | +----------------------------------------------------+ Best States ------------- Heat Dissipation 28 Energy Generation 10 Energy Capacity 250 Matter Stores 327 Matter Capacity 350 Sight Range 16 Robot Scan Range 10 Terrain Scan Density 10 Evasion (%) 54 Item Schematics ----------------- None Robot Schematics ------------------ None Fabricated ------------ Nothing Alien Tech Used ----------------- None Achievements -------------- None Challenges ------------ None Game ------ Seed ContainmentActuatorArray Manual? 0 Play Time 00:16:25 Cumulative 65.6 hours Start 2020.10.24 @ 11:31:25 End 2020.10.24 @ 11:44:16 Sessions 1 Manual Loads 0 Difficulty Rogue Special Mode None Game No. 122 Rogue 122 Adventurer 0 Explorer 0 Win Type - Total 0 Types 0/0/0/0/0/0/0/0/0 Lore% 47 Gallery% 52 Achievement% 39 Wizard Run 0 Options --------- ASCII 0 Keyboard 1 Movement Numpad Keybinds 0 Fullscreen 2 Font 18/Terminus Map View 76x50 Tactical HUD 1 Map Filters NONE Filters NONE Steam 1 RUN: 14bdc361-1bcd-40a4-b806-b502cb275022